bitfinex-derivatives/quotes_SOLF0:USTF0_20250416
["timestamp","ask_amount","ask_price","bid_price","bid_amount"]
[1744829031728,7.92272346,127.14,127.13,23.26229372]
[1744829031930,7.92272346,127.14,127.12,0.05164427]
[1744829032227,7.92272346,127.14,127.13,23.26229372]
[1744829032627,0.05762346,127.14,127.13,23.26229372]
[1744829032826,43.64,127.17,127.13,25.88359372]
[1744829033032,51.5038,127.17,127.15,23.26229372]
[1744829033231,43.64,127.17,127.15,23.26229372]
[1744829033431,91.94459372,127.17,127.13,2.6213]
[1744829033632,7.8651,127.14,127.13,2.6213]
[1744829033929,0.05817081,127.16,127.13,2.6213]
[1744829034632,7.8651,127.14,127.13,2.6213]
[1744829035229,0.05817081,127.16,127.12,0.05846631]
[1744829035933,48.30459372,127.15,127.12,0.05846631]
[1744829036130,0.05817081,127.16,127.12,0.05846631]
[1744829036835,7.8656,127.14,127.12,0.05846631]
[1744829037046,0.05817081,127.16,127.12,0.05846631]
[1744829037234,48.36276453,127.16,127.12,0.05846631]
[1744829037435,0.05817081,127.16,127.15,23.26229372]
[1744829037832,0.05817081,127.16,127.15,7.8645]
[1744829038230,43.64,127.2,127.14,2.6417]
[1744829038535,91.94459372,127.2,127.14,25.90399372]
[1744829038936,91.94459372,127.2,127.14,33.76899372]
[1744829039137,91.94459372,127.2,127.16,0.0547793]
[1744829039138,0.05671872,127.18,127.16,0.0547793]
[1744829039338,48.36131244,127.18,127.16,0.0547793]
[1744829039741,7.8633,127.17,127.16,0.0547793]
[1744829040241,7.91971872,127.18,127.16,0.0547793]
[1744829040541,0.05671872,127.18,127.16,23.31707302]
[1744829040839,7.91971872,127.18,127.16,23.31707302]
[1744829041031,0.05671872,127.18,127.16,23.31707302]
[1744829041233,0.05671872,127.18,127.16,0.0547793]
[1744829041432,7.8633,127.17,127.16,0.0547793]
[1744829041736,0.05671872,127.18,127.16,0.0547793]
[1744829041937,0.05671872,127.18,127.17,31.12559372]
[1744829042235,73.53581671,127.23,127.17,23.26229372]
[1744829042441,73.53581671,127.23,127.19,23.26229372]
[1744829042941,7.8618,127.2,127.15,2.6677]
[1744829043134,7.8618,127.2,127.19,23.26229372]
[1744829043339,7.8618,127.2,127.16,0.05494718]
[1744829043539,0.05547351,127.21,127.19,23.26229372]
[1744829043739,0.05547351,127.21,127.19,23.31245774]
[1744829043939,0.05547351,127.21,127.2,23.26229372]
[1744829044140,0.05547351,127.21,127.19,0.05016402]
[1744829044342,0.05547351,127.21,127.2,23.26229372]
[1744829044537,7.91627351,127.21,127.2,23.26229372]
[1744829044741,0.05547351,127.21,127.19,0.05016402]
[1744829044942,0.05547351,127.21,127.2,23.26229372]
[1744829045446,0.05547351,127.21,127.2,7.8614]
[1744829045645,43.62,127.23,127.19,0.05016402]
[1744829045847,43.62,127.23,127.22,23.26229372]
[1744829046043,43.62,127.23,127.19,0.05016402]
[1744829046245,43.62,127.23,127.22,23.26229372]
[1744829047043,112.75198932,127.23,127.08,43.62]
[1744829047249,29.91581671,127.16,127.14,23.26229372]
[1744829047450,7.8648,127.15,127.14,23.26229372]
[1744829047651,7.8648,127.15,127.11,7.867]
[1744829047949,7.8648,127.15,127.14,23.26229372]
[1744829048147,0.05970791,127.16,127.14,23.26229372]
[1744829048346,0.05970791,127.16,127.15,23.26229372]
[1744829048749,0.05970791,127.16,127.12,0.04998374]
[1744829049048,0.05970791,127.16,127.14,23.26229372]
[1744829049548,0.05970791,127.16,127.15,23.26229372]
[1744829049849,7.92360791,127.16,127.15,23.26229372]
[1744829050151,29.97552462,127.16,127.12,0.04998374]
[1744829050443,0.05970791,127.16,127.12,0.04998374]
[1744829050648,0.05970791,127.16,127.13,23.26229372]
[1744829051048,7.8656,127.14,127.12,0.04998374]
[1744829051444,0.05970791,127.16,127.15,23.26229372]
[1744829051843,43.5,127.21,127.16,7.8635]
[1744829052044,7.8617,127.2,127.19,23.26229372]
[1744829052247,43.5,127.21,127.18,23.26229372]
[1744829052450,29.91581671,127.19,127.1,2.5416]
[1744829052652,29.91581671,127.14,127.04,43.5]
[1744829052846,0.0541913,127.1,127.09,23.26229372]
[1744829053149,0.05953491,127.11,127.1,23.26229372]
[1744829053342,0.05953491,127.11,127.09,23.26229372]
[1744829053544,7.8682,127.09,127.08,23.31514093]
[1744829053947,7.8682,127.09,127.08,0.05284721]
[1744829056050,7.8682,127.09,127.08,23.31514093]
[1744829056741,7.8682,127.09,127.08,0.05284721]
[1744829057644,0.05953491,127.11,127.08,23.31514093]
[1744829058041,7.8682,127.09,127.08,23.31514093]
[1744829059552,7.8682,127.09,127.08,0.05284721]
[1744829060554,51.3882,127.09,127.08,0.05284721]
[1744829061049,7.8682,127.09,127.08,0.05284721]
[1744829061248,7.8682,127.09,127.08,23.31514093]
[1744829061452,7.8679,127.1,127.08,23.31514093]
[1744829061654,0.05953491,127.11,127.1,23.26229372]
[1744829061956,0.05953491,127.11,127.08,23.31514093]
[1744829062555,7.8682,127.09,127.08,23.31514093]
[1744829062953,7.8682,127.09,127.08,0.05284721]
[1744829064658,7.8682,127.09,127.08,23.31514093]
[1744829064959,7.8679,127.1,127.08,23.31514093]
[1744829065158,0.05953491,127.11,127.1,23.26229372]
[1744829065360,43.52,127.15,127.1,23.26229372]
[1744829065659,7.8664,127.12,127.11,23.26229372]
[1744829066260,0.05614049,127.13,127.11,23.26229372]
[1744829066451,0.05614049,127.13,127.1,2.64732346]
[1744829066656,0.05614049,127.13,127.12,23.26229372]
[1744829066956,0.05614049,127.13,127.11,7.8666]
[1744829067151,0.05614049,127.13,127.12,23.26229372]
[1744829067454,0.05614049,127.13,127.1,2.64732346]
[1744829067650,0.05614049,127.13,127.12,23.26229372]
[1744829067851,7.92214049,127.13,127.1,2.64732346]
[1744829068152,7.92214049,127.13,127.12,23.26229372]
[1744829068355,7.8664,127.12,127.1,10.51462346]
[1744829068760,0.05614049,127.13,127.1,23.32121718]
[1744829068961,7.867,127.11,127.1,23.32121718]
[1744829071162,0.05614049,127.13,127.1,23.32121718]
[1744829071464,0.05614049,127.13,127.12,23.26229372]
[1744829071665,7.8652,127.14,127.12,23.26229372]
[1744829071866,7.8652,127.14,127.1,0.05892346]
[1744829072166,7.8652,127.14,127.13,23.26229372]
[1744829072866,43.57109176,127.15,127.1,0.05892346]
[1744829073067,43.57109176,127.15,127.1,23.32121718]
[1744829073867,43.57109176,127.15,127.11,23.26229372]
[1744829074064,7.8661,127.13,127.11,23.26229372]
[1744829074268,7.8661,127.13,127.12,23.26229372]
[1744829074768,7.8661,127.13,127.1,7.92642346]
[1744829074971,51.43599176,127.15,127.12,31.12859372]
[1744829075269,43.57109176,127.15,127.12,23.26229372]
[1744829075568,7.8655,127.14,127.12,23.26229372]
[1744829075766,7.8655,127.14,127.13,23.26229372]
[1744829076068,7.8667,127.12,127.1,0.05892346]
[1744829076272,7.91869046,127.12,127.11,23.26229372]
[1744829076567,0.05199046,127.12,127.11,23.26229372]
[1744829077268,0.05199046,127.12,127.11,31.12929372]
[1744829077469,0.05199046,127.12,127.11,23.26229372]
[1744829077673,43.52,127.15,127.11,23.26229372]
[1744829077863,7.8651,127.14,127.13,23.26229372]
[1744829078060,43.52,127.15,127.12,23.26229372]
[1744829078568,7.8662,127.13,127.09,7.868]
[1744829078768,7.8662,127.13,127.12,23.31224165]
[1744829079164,7.8662,127.13,127.12,0.04994793]
[1744829079470,0.05856105,127.14,127.12,0.04994793]
[1744829079766,0.05856105,127.14,127.12,23.31224165]
[1744829079967,7.8658,127.13,127.12,0.04994793]
[1744829083864,0.05856105,127.14,127.12,0.04994793]
[1744829084170,0.05856105,127.14,127.13,23.26229372]
[1744829084472,43.38,127.18,127.13,23.26229372]
[1744829084764,43.38,127.18,127.15,23.26229372]
[1744829084971,7.8639,127.16,127.15,23.26229372]
[1744829085169,43.38,127.21,127.17,23.26229372]
[1744829085572,566.55547863,127.2,127.18,23.26229372]
[1744829085872,7.91737863,127.2,127.17,0.05441195]
[1744829086074,7.91737863,127.2,127.18,23.26229372]
[1744829086469,7.91737863,127.2,127.17,7.91751195]
[1744829086666,0.05547863,127.2,127.19,23.26229372]
[1744829087573,7.91687863,127.2,127.19,23.26229372]
[1744829087773,0.05547863,127.2,127.17,0.05441195]
[1744829087973,0.05547863,127.2,127.19,23.26229372]
[1744829088174,0.05547863,127.2,127.17,0.05441195]
[1744829088473,0.05547863,127.2,127.19,23.26229372]
[1744829088677,43.38,127.24,127.19,23.26229372]
[1744829088872,43.38,127.24,127.21,23.26229372]
[1744829089375,7.861,127.21,127.15,29.91581671]
[1744829089770,0.06001295,127.19,127.17,7.92251182]
[1744829090176,0.06001295,127.19,127.18,7.8627]
[1744829090380,0.06001295,127.19,127.18,31.12499372]
[1744829090673,0.06001295,127.19,127.18,7.8627]
[1744829090875,43.38,127.24,127.17,0.05971182]
[1744829091171,43.38,127.24,127.22,23.26229372]
[1744829091473,43.38,127.24,127.17,0.05971182]
[1744829091474,43.38,127.24,127.15,29.91581671]
[1744829091674,7.8596,127.23,127.22,23.26229372]
[1744829091876,43.43348722,127.24,127.21,0.04993497]
[1744829092072,0.05348722,127.24,127.22,23.26229372]
[1744829092266,0.05348722,127.24,127.23,23.26229372]
[1744829092471,0.05348722,127.24,127.22,23.26229372]
[1744829092672,0.05348722,127.24,127.23,23.26229372]
[1744829093072,0.05348722,127.24,127.21,0.04993497]
[1744829093272,7.91308722,127.24,127.23,23.26229372]
[1744829093472,7.91308722,127.24,127.21,7.91073497]
[1744829093673,0.05348722,127.24,127.23,23.26229372]
[1744829094069,0.05348722,127.24,127.22,7.8597]
[1744829094373,7.91248722,127.24,127.23,23.26229372]
[1744829094575,0.05348722,127.24,127.23,23.26229372]
[1744829094876,0.05348722,127.24,127.21,2.63113497]
[1744829095072,0.05348722,127.24,127.23,23.26229372]
[1744829095275,0.05348722,127.24,127.22,7.8598]
[1744829095475,0.05348722,127.24,127.23,23.26229372]
[1744829096079,0.05348722,127.24,127.23,7.8596]
[1744829096380,29.91581671,127.39,127.23,968.93581671]
[1744829096575,2.5686,127.37,127.31,23.26229372]
[1744829096781,2.5686,127.37,127.27,45.927]
[1744829096978,32.48441671,127.37,127.31,23.26229372]
[1744829097278,0.04153649,127.35,127.33,0.05228252]
[1744829097579,7.8528,127.34,127.33,0.05228252]
[1744829098381,15.7128,127.34,127.33,0.05228252]
[1744829098580,7.855,127.31,127.25,43.36]
[1744829098877,43.34,127.34,127.29,23.26229372]
[1744829099273,43.34,127.34,127.25,43.36]
[1744829099479,43.34,127.34,127.28,23.26229372]
[1744829099679,7.8557,127.3,127.27,23.26229372]
[1744829099876,29.91581671,127.31,127.27,0.05457931]
[1744829100075,73.25581671,127.29,127.22,2.6171]
[1744829100379,7.8581,127.26,127.23,23.26229372]
[1744829100576,43.34,127.29,127.23,23.26229372]
[1744829100779,51.1962,127.29,127.25,23.26229372]
[1744829100974,43.34,127.29,127.25,23.26229372]
[1744829101174,0.06048282,127.28,127.26,0.04999074]
[1744829101376,7.8571,127.27,127.26,0.04999074]
[1744829101580,0.06048282,127.28,127.22,2.6171]
[1744829101880,0.06048282,127.28,127.22,23.26229372]
[1744829102381,0.06048282,127.28,127.23,23.26229372]
[1744829102585,0.06048282,127.28,127.24,23.31726479]
[1744829102978,0.06048282,127.28,127.25,23.26229372]
[1744829103180,7.91728282,127.28,127.24,0.05497107]
[1744829103380,7.91728282,127.28,127.25,23.26229372]
[1744829103579,7.91728282,127.28,127.24,0.05497107]
[1744829103783,7.91728282,127.28,127.25,23.26229372]
[1744829103980,0.06048282,127.28,127.27,23.26229372]
[1744829104381,0.06048282,127.28,127.24,0.05497107]
[1744829104582,7.8561,127.29,127.24,0.05497107]
[1744829104583,43.34,127.32,127.27,23.26229372]
[1744829104783,43.34,127.39,127.31,23.26229372]
[1744829104985,43.34,127.39,127.35,23.26229372]
[1744829105284,565.96,127.43,127.35,23.26229372]
[1744829105479,7.8514,127.37,127.35,23.26229372]
[1744829105682,43.39392032,127.37,127.35,0.05049031]
[1744829105985,43.39392032,127.37,127.27,29.91581671]
[1744829105986,81.16973703,127.37,127.23,595.87581671]
[1744829106286,29.91581671,127.33,127.27,23.26229372]
[1744829106480,51.1945,127.32,127.28,7.8563]
[1744829106682,43.34,127.33,127.29,23.26229372]
[1744829106881,0.04986844,127.32,127.3,0.05847458]
[1744829107384,0.04986844,127.32,127.3,23.3207683]
[1744829107585,0.04986844,127.32,127.31,23.26229372]
[1744829107882,0.04986844,127.32,127.3,0.05847458]
[1744829108483,7.8546,127.31,127.3,0.05847458]
[1744829108985,7.8546,127.31,127.3,7.458e-05]
[1744829109280,0.04986844,127.32,127.3,7.458e-05]
[1744829109480,0.04986844,127.32,127.31,23.26229372]
[1744829109985,0.04986844,127.32,127.3,7.458e-05]
[1744829110279,0.04986844,127.32,127.31,23.26229372]
[1744829110474,43.18,127.39,127.31,23.26229372]
[1744829110680,43.18,127.39,127.34,23.26229372]
[1744829110975,43.18,127.42,127.35,29.91581671]
[1744829111179,43.18,127.42,127.37,23.26229372]
[1744829111375,0.05741677,127.41,127.38,0.05658443]
[1744829111582,7.8497,127.39,127.38,0.05658443]
[1744829112981,7.8497,127.39,127.38,8.443e-05]
[1744829113575,7.8492,127.4,127.38,23.26237815]
[1744829113882,43.16,127.45,127.4,23.26229372]
[1744829114084,7.8472,127.44,127.42,23.26229372]
[1744829114285,43.16,127.48,127.43,23.26229372]
[1744829114580,43.16,127.48,127.44,23.26229372]
[1744829115084,0.05383314,127.47,127.45,0.05455366]
[1744829115276,7.8454,127.46,127.45,0.05455366]
[1744829115477,29.91581671,127.46,127.38,2.5572]
[1744829115684,29.91581671,127.44,127.38,23.26229372]
[1744829115883,43.16,127.43,127.4,23.26229372]
[1744829116085,43.16,127.43,127.38,23.26229372]
[1744829116284,43.16,127.43,127.4,23.26229372]
[1744829116785,0.05888697,127.43,127.41,23.26229372]
[1744829117084,0.05888697,127.43,127.42,23.26229372]
[1744829117484,7.8455,127.46,127.42,31.10999372]
[1744829117684,608.88,127.49,127.41,32.60951671]
[1744829117979,608.88,127.49,127.45,23.26229372]
[1744829118485,0.06046261,127.48,127.46,23.32213494]
[1744829118680,7.8448,127.47,127.46,23.32213494]
[1744829118980,7.8448,127.47,127.46,0.05984122]
[1744829119186,1.36548233,127.52,127.47,23.26229372]
[1744829119380,29.91581671,127.52,127.46,23.32213494]
[1744829119579,7.8448,127.47,127.46,0.05984122]
[1744829119781,73.05581671,127.48,127.37,73.05581671]
[1744829120084,73.05581671,127.48,127.42,23.26229372]
[1744829120285,0.0516553,127.46,127.44,0.05030155]
[1744829120485,29.96747201,127.46,127.44,1.55e-06]
[1744829120685,29.91581671,127.45,127.36,2.5529]
[1744829120987,43.14,127.44,127.38,23.26229372]
[1744829121187,29.91581671,127.43,127.38,23.26229372]
[1744829121386,29.91581671,127.43,127.33,43.14]
[1744829121587,29.91581671,127.43,127.37,23.31809722]
[1744829121588,0.05386951,127.39,127.37,23.31809722]
[1744829121884,7.8503,127.38,127.37,23.31809722]
[1744829122388,7.90406951,127.39,127.37,0.0558035]
[1744829122588,0.05386951,127.39,127.37,23.31809722]
[1744829123091,7.8503,127.38,127.37,0.0558035]
[1744829125089,0.05386951,127.39,127.37,0.0558035]
[1744829125291,43.14,127.44,127.38,23.26229372]
[1744829125491,43.14,127.44,127.41,23.26229372]
[1744829125891,7.8482,127.42,127.38,2.5671]
[1744829126088,43.14,127.44,127.39,23.26229372]
[1744829126290,29.91581671,127.41,127.34,2.6137]
[1744829126488,29.91581671,127.39,127.34,2.6137]
[1744829126690,29.91581671,127.37,127.31,2.5815]
[1744829126887,43.14,127.36,127.33,23.26229372]
[1744829127088,43.14,127.36,127.34,23.26229372]
[1744829127293,43.14,127.39,127.35,23.26229372]
[1744829127488,0.0538443,127.38,127.36,0.04958267]
[1744829128093,7.8509,127.37,127.36,0.04958267]
[1744829128394,0.0538443,127.38,127.37,23.26229372]
[1744829128789,43.14,127.42,127.36,0.04958267]
[1744829128994,43.14,127.42,127.4,23.26229372]
[1744829129193,43.14,127.45,127.41,23.26229372]
[1744829129394,73.05581671,127.45,127.4,23.26229372]
[1744829129694,7.8485,127.41,127.4,23.26229372]
[1744829129896,29.91581671,127.43,127.41,1.605e-05]
[1744829130195,7.8515,127.37,127.35,2.472]
[1744829130397,43.14,127.39,127.36,23.26229372]
[1744829130595,43.14,127.39,127.35,2.472]
[1744829130889,0.05691075,127.38,127.36,0.05717565]
[1744829131086,0.05691075,127.38,127.28,29.91581671]
[1744829131287,43.14,127.42,127.37,23.26229372]
[1744829131594,43.14,127.42,127.39,23.26229372]
[1744829132096,7.8494,127.4,127.39,23.26229372]
[1744829132399,0.05171372,127.39,127.37,0.05055713]
[1744829133098,0.05171372,127.39,127.38,23.26229372]
[1744829133595,565.4,127.47,127.38,23.26229372]
[1744829133795,43.14,127.45,127.41,23.26229372]
[1744829133995,43.14,127.45,127.42,23.26229372]
[1744829134494,7.8472,127.43,127.42,23.26229372]
[1744829134899,7.8463,127.45,127.42,23.26229372]
[1744829135099,7.8463,127.45,127.39,29.91581671]
[1744829135100,7.8463,127.45,127.44,23.26229372]
[1744829135397,7.8463,127.45,127.39,29.91581671]
[1744829135591,7.8478,127.43,127.42,23.26229372]
[1744829135795,565.4,127.47,127.44,23.26229372]
[1744829135991,565.4,127.47,127.43,23.26229372]
[1744829136195,565.4,127.47,127.42,23.26229372]
[1744829136601,565.4,127.47,127.38,2.4583]
[1744829136794,29.91581671,127.46,127.41,23.26229372]
[1744829136993,565.4,127.47,127.41,23.26229372]
[1744829137196,0.05354761,127.46,127.43,0.05648391]
[1744829137900,7.8466,127.44,127.43,0.05648391]
[1744829139196,0.05354761,127.46,127.43,0.05648391]
[1744829139402,0.05354761,127.46,127.45,23.26229372]
[1744829139700,0.05354761,127.46,127.44,23.26229372]
[1744829139902,7.89914761,127.46,127.45,23.26229372]
[1744829140200,0.05354761,127.46,127.45,23.26229372]
[1744829140398,7.89904761,127.46,127.43,2.69968391]
[1744829140599,7.89904761,127.46,127.45,23.26229372]
[1744829140801,0.05354761,127.46,127.43,2.69968391]
[1744829141103,42.98,127.51,127.45,23.26229372]
[1744829141303,42.98,127.51,127.48,23.26229372]
[1744829141501,7.8434,127.5,127.48,23.26229372]
[1744829141902,7.8434,127.5,127.49,23.26229372]
[1744829142103,50.8228,127.51,127.49,23.26229372]
[1744829142304,50.8760342,127.51,127.5,23.26229372]
[1744829142500,43.0332342,127.51,127.48,23.31988735]
[1744829142904,43.0332342,127.51,127.48,0.05759363]
[1744829143203,50.8755342,127.51,127.5,23.26229372]
[1744829143402,43.0332342,127.51,127.49,23.26229372]
[1744829144004,0.0532342,127.51,127.5,23.26229372]
[1744829144404,0.0532342,127.51,127.48,0.05759363]
[1744829144801,7.8435,127.49,127.48,0.05759363]
[1744829145106,42.98,127.5,127.43,10.4903]
[1744829145305,7.8442,127.48,127.47,23.26229372]
[1744829145601,42.98,127.5,127.46,23.26229372]
[1744829145904,7.8448,127.47,127.46,23.26229372]
[1744829146098,7.8448,127.47,127.43,2.6432]
[1744829146296,7.8448,127.47,127.46,23.26229372]
[1744829146498,42.98,127.5,127.43,2.6432]
[1744829146706,29.91581671,127.45,127.37,7.8506]
[1744829147006,42.96,127.44,127.4,23.26229372]
[1744829147404,42.96,127.44,127.36,7.7383]
[1744829147705,42.96,127.44,127.4,23.26229372]
[1744829147900,0.05926338,127.41,127.4,23.26229372]
[1744829148097,29.97508009,127.41,127.36,2.5465]
[1744829148399,29.97508009,127.41,127.3,42.96]
[1744829148400,29.91581671,127.39,127.31,2.7043]
[1744829148596,29.91581671,127.39,127.33,23.26229372]
[1744829148802,7.8526,127.35,127.33,23.26229372]
[1744829149003,42.96,127.4,127.34,23.26229372]
[1744829149207,42.96,127.4,127.39,23.26229372]
[1744829149403,50.8096,127.4,127.39,23.26229372]
[1744829149603,42.96,127.4,127.36,0.05470852]
[1744829149909,0.0495269,127.41,127.39,23.26229372]
[1744829150205,0.0495269,127.41,127.4,23.26229372]
[1744829150406,0.0495269,127.41,127.37,5.4069]
[1744829150601,0.0495269,127.41,127.31,410.5065]
[1744829150602,0.0495269,127.41,127.31,45.5065]
[1744829150804,48.43700305,127.42,127.36,23.26229372]
[1744829151207,42.98,127.43,127.36,23.26229372]
[1744829151407,42.98,127.43,127.38,23.26229372]
[1744829151607,48.43700305,127.42,127.36,23.26229372]
[1744829151808,48.43700305,127.4,127.35,0.05258925]
[1744829152007,7.8516,127.36,127.35,0.05258925]
[1744829152302,42.98,127.39,127.35,23.31488297]
[1744829152509,42.98,127.42,127.38,23.26229372]
[1744829153104,7.8486,127.41,127.38,23.26229372]
[1744829153301,42.98,127.42,127.4,23.26229372]
[1744829153805,0.05867084,127.39,127.35,7.8519]
[1744829154005,0.05867084,127.39,127.38,23.26229372]
[1744829154608,0.05867084,127.39,127.32,96.69230305]
[1744829154802,7.90837084,127.39,127.38,23.26229372]
[1744829155108,7.90837084,127.39,127.32,96.69230305]
[1744829155109,0.05867084,127.39,127.36,23.26229372]
[1744829155309,7.8519,127.36,127.35,23.26229372]
[1744829155809,7.8522,127.35,127.34,0.05197228]
[1744829156404,48.48888564,127.36,127.31,2.5465]
[1744829156610,42.98,127.35,127.27,5.21]
[1744829156911,42.98,127.35,127.32,23.26229372]
[1744829157411,0.05212697,127.35,127.34,23.26229372]
[1744829158010,0.05212697,127.35,127.32,0.05427645]
[1744829158209,0.05212697,127.35,127.33,23.26229372]
[1744829158410,0.05212697,127.35,127.32,0.05427645]
[1744829159211,7.8534,127.33,127.32,0.05427645]
[1744829159705,7.8572,127.27,127.21,365.0]
[1744829159911,42.98,127.29,127.25,23.26229372]
[1744829160207,42.98,127.29,127.24,2.5397]
[1744829160410,42.98,127.29,127.26,23.26229372]
[1744829160609,42.98,127.29,127.25,23.26229372]
[1744829160909,42.98,127.29,127.26,0.06039366]
[1744829160910,0.0519545,127.28,127.26,0.06039366]
[1744829161110,48.48895755,127.28,127.15,42.98]
[1744829161312,7.8608,127.21,127.2,23.26229372]
[1744829161512,43.0,127.23,127.2,23.26229372]
[1744829162009,43.0,127.23,127.18,2.5397]
[1744829162314,43.0,127.3,127.22,71.69929677]
[1744829162510,565.52,127.35,127.29,23.26229372]
[1744829162705,565.52,127.35,127.31,0.05262083]
[1744829163012,7.854,127.32,127.31,0.05262083]
[1744829163209,0.05320529,127.33,127.31,0.05262083]
[1744829163512,43.0,127.39,127.32,23.26229372]
[1744829163811,608.52,127.41,127.33,51.03800305]
[1744829164005,608.52,127.41,127.37,23.26229372]
[1744829164203,7.8503,127.38,127.37,23.26229372]
[1744829164408,608.52,127.41,127.33,2.601]
[1744829164604,608.52,127.41,127.36,23.26229372]
[1744829164813,7.8507,127.38,127.37,23.26229372]
[1744829165106,608.52,127.41,127.36,23.26229372]
[1744829165310,608.52,127.41,127.34,23.26229372]
[1744829165612,608.52,127.41,127.33,2.601]
[1744829165811,608.52,127.41,127.35,23.26229372]
[1744829166012,608.52,127.41,127.33,2.601]
[1744829166013,0.05190052,127.37,127.34,0.0557818]
[1744829166213,0.05190052,127.37,127.36,23.26229372]
[1744829166409,0.05190052,127.37,127.35,23.26229372]
[1744829166610,7.90280052,127.37,127.36,23.26229372]
[1744829166810,0.05190052,127.37,127.35,23.26229372]
[1744829167114,7.8516,127.36,127.35,23.26229372]
[1744829167308,43.05190052,127.37,127.34,0.0557818]
[1744829168510,43.05190052,127.37,127.26,408.0]
[1744829168511,48.43700305,127.36,127.23,91.43700305]
[1744829168713,48.43700305,127.34,127.3,23.26229372]
[1744829169013,7.8546,127.31,127.3,23.26229372]
[1744829170114,48.49700029,127.32,127.29,0.05430349]
[1744829170413,48.43700305,127.3,127.24,2.4739]
[1744829170615,7.8602,127.22,127.17,48.43700305]
[1744829170815,7.8602,127.22,127.19,2.4739]
[1744829171015,7.8602,127.22,127.21,28.50909372]
[1744829171514,7.8602,127.22,127.21,23.26229372]
[1744829171910,7.91995296,127.23,127.21,23.26229372]
[1744829172113,0.06015296,127.23,127.22,23.26229372]
[1744829172308,42.86,127.25,127.22,23.26229372]
[1744829172309,565.56,127.33,127.25,7.8579]
[1744829172513,42.86,127.34,127.31,23.26229372]
[1744829172914,7.8556,127.3,127.26,53.68750305]
[1744829173314,7.8556,127.3,127.29,23.26229372]
[1744829173518,0.05489835,127.31,127.27,0.05300235]
[1744829174014,42.86,127.34,127.3,71.69929677]
[1744829174310,42.86,127.34,127.32,23.26229372]
[1744829174514,42.86,127.34,127.31,23.26229372]
[1744829174916,50.7128,127.34,127.33,23.26229372]
[1744829175117,0.05012959,127.34,127.33,23.26229372]
[1744829175818,42.86,127.37,127.33,23.26229372]
[1744829176116,7.8516,127.36,127.35,23.26229372]
[1744829176412,42.86,127.37,127.27,48.43700305]
[1744829176620,48.43700305,127.31,127.26,2.5774]
[1744829176814,42.86,127.33,127.3,10.71329372]
[1744829177023,7.8546,127.31,127.3,0.05499806]
[1744829179016,7.8546,127.31,127.3,9.806e-05]
[1744829179518,7.8593,127.24,127.22,4.1317]
[1744829179717,7.8593,127.24,127.23,10.71329372]
[1744829179918,42.86,127.27,127.22,4.1317]
[1744829180123,42.86,127.27,127.26,10.71329372]
[1744829180417,42.86,127.27,127.23,10.71329372]
[1744829180618,7.91066592,127.26,127.25,10.71329372]
[1744829180818,0.05286592,127.26,127.24,0.05446592]
[1744829181016,565.64,127.39,127.24,7.91446592]
[1744829181211,44.29891487,127.38,127.32,10.71329372]
[1744829181409,44.29891487,127.38,127.3,48.43700305]
[1744829181410,48.43700305,127.37,127.3,10.71329372]
[1744829181614,7.8547,127.31,127.26,2.5286]
[1744829181814,48.43700305,127.35,127.26,2.5286]
[1744829181815,42.86,127.32,127.29,10.71329372]
[1744829182013,42.9131977,127.32,127.3,10.71329372]
[1744829182214,42.9131977,127.32,127.29,0.05211441]
[1744829182722,48.43700305,127.3,127.22,4.1317]
[1744829182919,48.43700305,127.28,127.23,10.71329372]
[1744829183118,42.86,127.27,127.22,2.1235]
[1744829183319,48.43700305,127.26,127.16,48.43700305]
[1744829183514,48.43700305,127.26,127.21,10.71329372]
[1744829183721,0.05307866,127.25,127.22,10.77081818]
[1744829183923,7.91177866,127.25,127.22,10.77081818]
[1744829184120,7.91177866,127.25,127.22,0.05752446]
[1744829184519,0.05307866,127.25,127.23,10.71329372]
[1744829184722,0.05307866,127.25,127.24,10.71329372]
[1744829185020,0.05307866,127.25,127.22,0.05752446]
[1744829185717,7.861,127.21,127.17,2.1336]
[1744829185922,42.88,127.22,127.21,10.71329372]
[1744829186128,42.88,127.25,127.24,10.71329372]
[1744829186315,567.7348,127.31,127.28,10.71329372]
[1744829186316,608.54,127.31,127.28,10.71329372]
[1744829186520,42.88,127.35,127.3,10.71329372]
[1744829186724,7.8538,127.33,127.31,10.71329372]
[1744829187024,7.8538,127.33,127.31,10.76846361]
[1744829187225,7.8539,127.33,127.31,0.05516989]